{"text_format":"1","workbook":"xlsx","n_sheets":3,"sheets":["その2","練習場","CAR"],"not_rendered":{"charts":0,"images":1,"macros":1,"external_links":0,"defined_names":2,"comments":0,"pivot_tables":0},"unopened":[],"bounds":{"document_bytes":16777216,"sheet_cells":100000,"rows_first":2000,"rows_last":500,"rows_between":2000,"halvings":0,"cell_chars":16384,"cell_head_chars":4096},"cells_cut":0,"cells_raw":0,"read":"whole","date_system":"1900"}

{"sheet":"その2","index":0,"n_rows":23,"n_cols":4,"rows_kept":23,"cut":false,"hidden":false,"merged":[]}
["商品名","仕入値","個数","単一の原価"]
["木村屋 味噌ラーメン",10000,62,{"$f":"B2/C2","v":161.29032258064515}]
["木村屋 醤油ラーメン",10000,62,{"$f":"B3/C3","v":161.29032258064515}]
["木村屋 塩ラーメン",10000,62,161.29032258064515]
["木村屋 とんこつラーメン",10000,62,161.29032258064515]
["水戸まんじゅう 5個セット",20000,28,714.28571428571433]
["水戸まんじゅう 12個セット",30000,20,1500]
["品川ラーメン 味噌",20000,163,122.69938650306749]
["品川ラーメン 醤油",20000,163,122.69938650306749]
["品川ラーメン 塩",20000,163,122.69938650306749]
["品川ラーメン とんこつ",20000,163,122.69938650306749]
["鷹ノ爪 とうがらし",35000,152,230.26315789473685]
["鷹ノ爪 わさび",35000,152,230.26315789473685]
["鷹ノ爪 からし",35000,152,230.26315789473685]
["鷹ノ爪 マスタード",35000,152,230.26315789473685]
["大原堂 そうめん",100000,333,300.30030030030031]
["大原堂 うどん",100000,333,300.30030030030031]
["大原堂 そば",100000,333,300.30030030030031]
["大原堂 ひやむぎ",100000,333,300.30030030030031]
["松井物産 レトルトカレー 甘口",300000,1200,250]
["松井物産 レトルトカレー 中辛",300000,1200,250]
["松井物産 レトルトカレー 辛口",300000,1200,250]
["合計",{"$f":"SUM(B2:B22)","v":1610000},{"$f":"SUM(C2:C22)","v":6488},"※"]

{"sheet":"練習場","index":1,"n_rows":24,"n_cols":28,"rows_kept":24,"cut":false,"hidden":false,"merged":[[7,4,16,19],[1,25,2,26],[1,27,2,30],[1,3,2,20]]}
["<練習場>"]
[null,null,null,null,null,null,null,null,null,null,null,null,null,null,null,null,null,null,null,null,null,null,null,null,null,"TIME",null,"3.182秒"]
[]
[]
[]
[]
[null,null,null,"■","■","■","■","■","■","■","■","■","■","■","■","■","■","■","■","■","■",null,null,null,null,"・使い方"]
[null,null,null,"■","TOMETA\nサーキット",null,null,null,null,null,null,null,null,null,null,null,null,null,null,null,"■",null,null,null,null,"スタートボタンを押すとスタート地点に車が配置されます。"]
[null,null,null,"■",null,null,null,null,null,null,null,null,null,null,null,null,null,null,null,null,"■",null,null,null,null,"その後は、"]
[null,null,null,"■",null,null,null,null,null,null,null,null,null,null,null,null,null,null,null,null,"■",null,null,null,null,"【CTRL】＋【↓】"]
[null,null,null,"■",null,null,null,null,null,null,null,null,null,null,null,null,null,null,null,null,"■",null,null,null,null,"【CTRL】＋【→】"]
[null,null,null,"■",null,null,null,null,null,null,null,null,null,null,null,null,null,null,null,null,"■",null,null,null,null,"【CTRL】＋【↑】"]
[null,null,null,"■",null,null,null,null,null,null,null,null,null,null,null,null,null,null,null,null,"■",null,null,null,null,"【CTRL】＋【←】"]
[null,null,null,"■",null,null,null,null,null,null,null,null,null,null,null,null,null,null,null,null,"■",null,null,null,null,"で、道路を一周してゴールに達します。"]
[null,null,null,"■",null,null,null,null,null,null,null,null,null,null,null,null,null,null,null,null,"■",null,null,null,null,"その間のタイムが計測されます。"]
[null,null,null,"■",null,null,null,null,null,null,null,null,null,null,null,null,null,null,null,null,"■",null,null,null,null,"ちなみに、余計なことをするとクラッシュします。"]
[null,null,null,"■",null,null,null,null,null,null,null,null,null,null,null,null,null,null,null,null,"■"]
[null,null,null,"■","■","■","■","■","■","■","■","■","■","■","■","■","■","■","■","■","■",null,null,null,null,"※ 図形(車)などを削除してしまった場合は、再度このブックをダウンロードしてください。"]
[]
[]
[]
[null,null,null,"■","… 道路"]
[null,null,null,"■","… スタート地点、GOAL地点"]
[null,null,null,"※TOMETA関係者によると、『空飛ぶ車は古い、今はテレポーテーションできる車が開発されている。』とのこと。"]

{"sheet":"CAR","index":2,"n_rows":0,"n_cols":0,"rows_kept":0,"cut":false,"hidden":false,"merged":[]}